bitfinex/quotes_BTCUSD_20250127
["timestamp","ask_amount","ask_price","bid_price","bid_amount"]
[1737978475753,0.10001472,99022.0,99018.0,0.151487]
[1737978475955,0.10001472,99022.0,99012.0,0.201995]
[1737978476199,0.151486,99019.0,99003.0,0.09734729]
[1737978476402,0.151484,99020.0,99003.0,0.09734729]
[1737978476573,0.151488,99018.0,99011.0,0.151497]
[1737978477006,0.0478,99019.0,99005.0,0.202008]
[1737978477204,0.151492,99015.0,99008.0,0.151502]
[1737978477369,0.0478,99019.0,99003.0,0.004]
[1737978477576,0.0981172,99018.0,98988.0,0.202044]
[1737978477796,0.201999,99010.0,98980.0,0.15]
[1737978478020,0.151503,99008.0,99002.0,0.151511]
[1737978478223,0.09734729,99018.0,99004.0,0.151508]
[1737978478426,0.151502,99009.0,99002.0,0.151511]
[1737978478630,0.09734729,99018.0,98985.0,0.09734729]
[1737978478631,0.01982264,99005.0,98985.0,0.24734729]
[1737978478827,0.151488,99018.0,98988.0,0.202044]
[1737978479057,0.0478,99019.0,98991.0,0.023]
[1737978479267,0.0478,99019.0,99018.0,0.151487]
[1737978479454,0.12189736,99031.0,99030.0,0.151469]
[1737978479659,0.0664981,99031.0,99030.0,0.151469]
[1737978479834,0.04629736,99031.0,99030.0,0.151469]
[1737978480247,0.04629736,99031.0,99011.0,0.002]
[1737978480438,0.04629736,99031.0,99028.0,0.151472]
[1737978480778,0.04629736,99031.0,99011.0,0.09734729]
[1737978480953,0.04629736,99031.0,99018.0,0.002]
[1737978481166,0.151469,99030.0,99017.0,0.201983]
[1737978481425,0.151476,99026.0,99017.0,0.201983]
[1737978481630,0.00076991,99029.0,98991.0,0.202038]
[1737978481830,0.151477,99025.0,99018.0,0.151487]
[1737978482016,0.04729736,99031.0,99004.0,0.20201]
[1737978482221,0.0791,99021.0,98992.0,0.0432]
[1737978482427,0.00076991,99020.0,98984.0,0.0001416]
[1737978482587,0.1253,99009.0,98986.0,0.202048]
[1737978482792,0.1253,99009.0,98984.0,0.0001416]
[1737978482793,0.0981172,99008.0,98984.0,0.0001416]
[1737978483024,0.20172603,99007.0,98991.0,0.151528]
[1737978483224,0.29907332,99007.0,98991.0,0.151528]
[1737978483448,0.151519,98998.0,98992.0,0.151527]
[1737978483699,0.202007,99006.0,98994.0,0.151522]
[1737978483897,0.151519,98998.0,98984.0,0.0001416]
[1737978484098,0.151519,98997.0,98991.0,0.151528]
[1737978484376,0.09734729,99007.0,98984.0,0.0081416]
[1737978484522,0.29935229,99007.0,98994.0,0.151523]
[1737978484727,0.02030326,98995.0,98994.0,0.151523]
[1737978485732,0.02030326,98995.0,98994.0,0.152523]
[1737978486198,0.02030326,98995.0,98991.0,0.2021776]
[1737978486199,0.1253,99009.0,99008.0,0.151502]
[1737978486428,0.0458,99009.0,99008.0,0.151502]
[1737978486725,0.0458,99009.0,99002.0,0.202015]
[1737978486726,0.0458,99009.0,99005.0,0.151506]
[1737978486915,0.0458,99009.0,99008.0,0.151502]
[1737978487272,0.0458,99009.0,98996.0,0.404056]
[1737978487525,0.0458,99009.0,98995.0,0.202028]
[1737978487736,0.0458,99009.0,99008.0,0.153502]
[1737978488115,0.0458,99009.0,99008.0,0.002]
[1737978488266,0.0468,99009.0,99008.0,0.002]
[1737978488802,0.0458,99009.0,99008.0,0.153502]
[1737978489230,0.0825,99019.0,99018.0,0.151487]
[1737978489451,0.0481,99020.0,99019.0,0.151486]
[1737978491097,0.0482,99033.0,99028.0,0.151472]
[1737978491308,0.0482,99049.0,99030.0,0.151469]
[1737978491507,0.0482,99049.0,99030.0,0.27181629]
[1737978492561,0.00129736,99031.0,99030.0,0.27181629]
[1737978492984,0.00029736,99031.0,99030.0,0.27181629]
[1737978493617,0.00029736,99031.0,99030.0,0.24881629]
[1737978493830,0.00029736,99031.0,99030.0,0.155469]
[1737978494425,0.00029736,99031.0,99030.0,0.005]
[1737978494570,0.00029736,99031.0,99030.0,0.001]
[1737978494777,0.00029736,99031.0,99030.0,0.152469]
[1737978494977,0.00029736,99031.0,99030.0,0.24982602]
[1737978495182,0.00029736,99031.0,99030.0,0.27181629]
[1737978495958,0.00029736,99031.0,99030.0,0.151469]
[1737978496163,0.00029736,99031.0,99030.0,0.156469]
[1737978496369,0.00029736,99031.0,99030.0,0.152469]
[1737978496770,0.00029736,99031.0,99030.0,0.159469]
[1737978497167,0.00029736,99031.0,99030.0,0.152469]
[1737978497364,0.00029736,99031.0,99030.0,0.156469]
[1737978497566,0.00029736,99031.0,99030.0,0.155469]
[1737978497935,0.00029736,99031.0,99030.0,0.157469]
[1737978498399,0.00029736,99031.0,99030.0,0.155469]
[1737978498701,0.00029736,99031.0,99030.0,0.156469]
[1737978499331,0.00029736,99031.0,99030.0,0.151469]
[1737978499543,0.00029736,99031.0,99030.0,0.156469]
[1737978499957,0.00029736,99031.0,99030.0,0.152469]
[1737978500163,0.00029736,99031.0,99030.0,0.156469]
[1737978500568,0.00029736,99031.0,99030.0,0.152469]
[1737978500836,0.00029736,99031.0,99030.0,0.156469]
[1737978500975,0.00029736,99031.0,99030.0,0.155469]
[1737978501186,0.00029736,99031.0,99030.0,0.156469]
[1737978501689,0.00029736,99031.0,99030.0,0.151469]
[1737978502077,0.00029736,99031.0,99030.0,0.152469]
[1737978502523,0.00029736,99031.0,99030.0,0.151469]
[1737978503130,0.00029736,99031.0,99030.0,0.155469]
[1737978503291,0.07959736,99031.0,99030.0,0.005]
[1737978503492,0.23106436,99031.0,99030.0,0.005]
[1737978503695,0.07959736,99031.0,99030.0,0.005]
[1737978504118,0.23106436,99031.0,99030.0,0.005]
[1737978504291,0.27616436,99031.0,99030.0,0.001]
[1737978504490,0.29603769,99031.0,99030.0,0.001]
[1737978504898,0.3060224,99031.0,99030.0,0.001]
[1737978505100,0.3060224,99031.0,99030.0,0.002]
[1737978505508,0.3060224,99031.0,99030.0,0.001]
[1737978506150,0.151474,99027.0,99021.0,0.151482]
[1737978506562,0.151474,99027.0,99019.0,0.151485]
[1737978506563,0.151477,99025.0,99019.0,0.151485]
[1737978506984,0.1545554,99031.0,99030.0,0.001]
[1737978507210,0.3060224,99031.0,99030.0,0.001]
[1737978507425,0.1545554,99031.0,99015.0,0.201987]
[1737978507549,0.151479,99024.0,99021.0,0.004]
[1737978508004,0.151479,99024.0,99019.0,0.151485]
[1737978508229,0.201961,99029.0,99015.0,0.201987]
[1737978508426,0.151472,99028.0,99021.0,0.152482]
[1737978508642,0.151481,99023.0,99021.0,0.001]
[1737978508851,0.151481,99022.0,99016.0,0.15149]
[1737978509181,0.151481,99022.0,99013.0,0.0432]
[1737978509182,0.151478,99024.0,99019.0,0.152485]
[1737978509397,0.151475,99026.0,99019.0,0.001]
[1737978509601,0.151475,99026.0,99021.0,0.151481]
[1737978509981,0.1545554,99031.0,99018.0,0.201982]
[1737978510204,0.151469,99030.0,99024.0,0.151477]
[1737978510416,0.151469,99030.0,99018.0,0.201982]
[1737978510417,0.1545554,99031.0,99016.0,0.002]
[1737978510536,0.1545554,99031.0,99026.0,0.151474]
[1737978510738,0.3060234,99031.0,99024.0,0.151477]
[1737978510938,0.1545554,99031.0,99018.0,0.201983]
[1737978511135,0.1545554,99031.0,99018.0,0.005]
[1737978511136,0.21569061,99030.0,99018.0,0.005]
[1737978511337,0.227086,99019.0,99018.0,0.005]
[1737978511672,0.151502,99008.0,99007.0,0.0001416]
[1737978511882,0.151498,99011.0,99007.0,0.0001416]
[1737978512086,0.151496,99013.0,99007.0,0.0001416]
[1737978512303,0.198302,99008.0,99007.0,0.0001416]
[1737978513207,0.0468,99008.0,99007.0,0.0001416]
[1737978513601,0.06747587,99008.0,99007.0,0.0001416]
[1737978513804,0.21897787,99008.0,99007.0,0.0001416]
[1737978514249,0.30057787,99008.0,99007.0,0.0001416]
[1737978514407,0.39792516,99008.0,99007.0,0.0001416]
[1737978514611,0.39792516,99008.0,99007.0,0.0021416]
[1737978516599,0.07745455,99008.0,99007.0,0.0021416]
[1737978516799,0.07745455,99008.0,99007.0,0.0001416]
[1737978517307,0.07745455,99008.0,99007.0,0.0021416]
[1737978517516,0.07745455,99008.0,99007.0,0.0001416]
[1737978517517,0.0468,99008.0,99007.0,0.0001416]
[1737978517663,0.0473,99015.0,99007.0,0.0001416]
[1737978518080,0.198793,99015.0,99008.0,0.151502]
[1737978518416,0.198793,99015.0,99007.0,0.0021416]
[1737978518417,0.151495,99013.0,99007.0,0.1516446]
[1737978518573,0.02062736,99012.0,99007.0,0.0011416]
[1737978518773,0.02062736,99012.0,99009.0,0.1515]
[1737978519209,0.02062736,99012.0,99007.0,0.0011416]
[1737978519382,0.151502,99008.0,99007.0,0.0011416]
[1737978519592,0.15227191,99008.0,99007.0,0.0011416]
[1737978519796,0.151502,99008.0,99007.0,0.0011416]
[1737978520033,0.151502,99008.0,99007.0,0.0001416]
[1737978520397,0.151502,99009.0,99007.0,0.0001416]
[1737978520667,0.151499,99011.0,99007.0,0.0001416]
[1737978521057,0.151502,99009.0,99007.0,0.0001416]
[1737978521261,0.151502,99008.0,99007.0,0.0001416]
[1737978521499,0.02062736,99012.0,99007.0,0.0001416]
[1737978521706,0.151501,99010.0,99007.0,0.0001416]
[1737978522023,0.151501,99010.0,99007.0,0.0011416]
[1737978522646,0.227202,99008.0,99007.0,0.0011416]
[1737978522931,0.227202,99008.0,98972.0,0.151557]
[1737978522932,0.151527,98992.0,98972.0,0.151557]
[1737978523122,0.151527,98992.0,98976.0,0.151551]
[1737978523355,0.151527,98992.0,98981.0,0.151543]
[1737978523943,0.151527,98992.0,98979.0,0.151546]
[1737978524145,0.151527,98992.0,98978.0,0.202063]
[1737978524356,0.151527,98992.0,98979.0,0.151546]
[1737978524921,0.17207726,98992.0,98980.0,0.151545]
[1737978525377,0.17207726,98992.0,98982.0,0.023]
[1737978525770,0.17307726,98992.0,98982.0,0.023]
[1737978525929,0.18314398,98992.0,98982.0,0.023]
[1737978526137,0.18314398,98992.0,98983.0,0.151539]
[1737978526335,0.02155026,98992.0,98991.0,0.1746696]
[1737978526854,0.02255026,98992.0,98991.0,0.1746696]
[1737978527049,0.002,98992.0,98991.0,0.1746696]
[1737978527304,0.001,98992.0,98991.0,0.1746696]
[1737978527654,0.198813,99001.0,98996.0,0.15152]
[1737978527869,0.0473,99001.0,98999.0,0.023]
[1737978528098,0.151505,99007.0,99001.0,0.151512]
[1737978528304,0.02029953,99001.0,99000.0,0.023]
[1737978528457,0.151511,99003.0,98999.0,0.174516]
[1737978528654,0.151507,99005.0,98999.0,0.174516]
[1737978528907,0.202005,99007.0,98997.0,0.202024]
[1737978528908,0.01981827,99002.0,99001.0,0.174513]
[1737978529112,0.01981827,99002.0,99001.0,0.023]
[1737978530475,0.01981827,99002.0,99001.0,0.174513]
[1737978531077,0.001,99007.0,99001.0,0.023]
[1737978531303,0.151502,99009.0,99005.0,0.023]
[1737978531507,0.151511,99003.0,98991.0,0.0001416]
[1737978531700,0.001,99002.0,98993.0,0.023]
[1737978531898,0.20202,99000.0,98993.0,0.174525]
[1737978532127,0.151519,98998.0,98993.0,0.023]
[1737978532329,0.151519,98997.0,98994.0,0.023]
[1737978532527,0.20202,99000.0,98994.0,0.023]
[1737978532774,0.202014,99003.0,98991.0,0.0001416]
[1737978532978,0.151519,98998.0,98994.0,0.023]
[1737978533380,0.151516,99000.0,98997.0,0.023]
[1737978533571,0.151512,99002.0,98997.0,0.174519]
[1737978533813,0.01992004,99006.0,98998.0,0.202024]
[1737978533986,0.01992004,99006.0,98999.0,0.023]
[1737978534217,0.01992004,99006.0,99004.0,0.151508]
[1737978534394,0.01992004,99006.0,99004.0,0.023]
[1737978534570,0.01992004,99006.0,99005.0,0.174507]
[1737978535858,0.02092004,99006.0,99005.0,0.174507]
[1737978536057,0.001,99006.0,99005.0,0.174507]
[1737978537750,0.02056093,99011.0,99010.0,0.151499]
[1737978537981,0.151488,99018.0,99013.0,0.023]
[1737978538208,0.15149,99016.0,99013.0,0.023]
[1737978538448,0.151491,99016.0,99012.0,0.023]
[1737978538639,0.151495,99013.0,99009.0,0.023]
[1737978538925,0.151495,99013.0,98999.0,0.202021]
[1737978538926,0.151508,99005.0,98995.0,0.353552]
[1737978539128,0.151508,99005.0,98984.0,0.0001416]
[1737978539129,0.151503,99008.0,98991.0,0.0231416]
[1737978539337,0.0478,99008.0,98991.0,0.0001416]
[1737978539505,0.151508,99005.0,98999.0,0.151516]
[1737978539736,0.0478,99008.0,98999.0,0.151516]
[1737978539902,0.202007,99006.0,99000.0,0.023]
[1737978540107,0.151509,99004.0,99000.0,0.023]
[1737978540490,0.02047619,99001.0,99000.0,0.023]
[1737978540987,0.02047619,99001.0,99000.0,0.174515]
[1737978541167,0.02047619,99001.0,99000.0,0.175515]
[1737978541426,0.02047619,99001.0,99000.0,0.174515]
[1737978541612,0.05817201,99008.0,99004.0,0.151508]
[1737978541808,0.01972216,99005.0,99003.0,0.023]
[1737978542039,0.0478,99008.0,99007.0,0.174504]
[1737978542253,0.0453,99019.0,99018.0,0.174487]
[1737978542455,0.08239736,99031.0,99019.0,0.023]
[1737978542680,0.09254554,99031.0,99023.0,0.023]
[1737978542889,0.09254554,99031.0,99022.0,0.201975]
[1737978542890,0.23386536,99031.0,99027.0,0.023]
[1737978543095,0.22401513,99031.0,99027.0,0.023]
[1737978543229,0.02034682,99028.0,99027.0,0.023]
[1737978543777,0.17181882,99028.0,99027.0,0.023]
[1737978544120,0.02034682,99028.0,99027.0,0.023]
[1737978544851,0.02034682,99028.0,99027.0,0.174473]
[1737978546027,0.07254713,99031.0,99028.0,0.023]
[1737978546231,0.01058429,99032.0,99030.0,0.151469]
[1737978546474,0.01058429,99032.0,99028.0,0.174471]
[1737978546656,0.01058429,99032.0,99030.0,0.151468]
[1737978546865,0.02039475,99031.0,99030.0,0.151468]
[1737978547459,0.02039475,99031.0,99028.0,0.023]
[1737978547460,0.00029736,99032.0,99031.0,0.174467]
[1737978547644,0.00029736,99032.0,99031.0,0.27282398]
[1737978547836,0.00029736,99032.0,99031.0,0.34871429]
[1737978548247,0.00029736,99032.0,99031.0,0.38003038]
[1737978548913,0.00029736,99032.0,99031.0,0.38203038]
[1737978549341,0.00029736,99032.0,99031.0,0.38003038]
[1737978549517,0.00029736,99032.0,99031.0,0.39012863]
[1737978549867,0.00029736,99032.0,99031.0,0.39312863]
[1737978550081,0.00029736,99032.0,99031.0,0.56312863]
[1737978550298,0.00029758,99053.0,99034.0,0.02]
[1737978550489,0.00029758,99053.0,99041.0,0.174452]
[1737978550662,0.00029758,99053.0,99041.0,0.28191709]
[1737978550862,0.00029758,99053.0,99041.0,0.31323318]
[1737978551278,0.00029758,99053.0,99041.0,0.46323318]
[1737978551437,0.00029758,99053.0,99041.0,0.30311538]
[1737978551634,0.00029758,99053.0,99041.0,0.27379929]
[1737978552292,0.00029758,99053.0,99041.0,0.153452]
[1737978552293,0.0498,99050.0,99041.0,0.153452]
[1737978552660,0.0498,99050.0,99041.0,0.176452]
[1737978552876,0.0498,99050.0,99041.0,0.182452]
[1737978553073,0.15174779,99042.0,99041.0,0.008]
[1737978553497,0.23034779,99042.0,99041.0,0.008]
[1737978553701,0.23034779,99042.0,99041.0,0.002]
[1737978554108,0.23034779,99042.0,99041.0,0.008]
[1737978554313,0.07889779,99042.0,99032.0,0.08948582]
[1737978554495,0.151456,99039.0,99033.0,0.151463]
[1737978554904,0.28083379,99042.0,99033.0,0.151463]
[1737978554905,0.07889779,99042.0,99033.0,0.023]
[1737978555092,0.07889779,99042.0,99037.0,0.151458]
[1737978555301,0.07889779,99042.0,99034.0,0.20195]
[1737978555302,0.07889779,99042.0,99033.0,0.023]
[1737978555520,0.07889779,99042.0,99041.0,0.151452]
[1737978555758,0.00029779,99042.0,99041.0,0.151452]
[1737978555978,0.00029779,99042.0,99032.0,0.001]
[1737978556212,0.151467,99032.0,99026.0,0.151474]
[1737978556415,0.151467,99032.0,99024.0,0.023]
[1737978556618,0.151465,99033.0,99025.0,0.201969]
[1737978556815,0.201938,99040.0,99025.0,0.201969]
[1737978557012,0.151461,99035.0,99029.0,0.15147]
[1737978557357,0.00029779,99042.0,99027.0,0.151473]
[1737978557563,0.00029779,99042.0,99025.0,0.023]
[1737978557564,0.17635874,99040.0,99025.0,0.023]
[1737978557784,0.151475,99027.0,99022.0,0.151481]
[1737978557993,0.20195,99034.0,99020.0,0.023]
[1737978558379,0.151467,99031.0,99026.0,0.151474]
[1737978558511,0.151465,99033.0,99026.0,0.151474]
[1737978558734,0.251643,99038.0,99011.0,0.08948582]
[1737978558735,0.4031,99038.0,99031.0,0.151466]
[1737978558908,0.0497,99038.0,99032.0,0.151465]
[1737978559305,0.151459,99037.0,99032.0,0.151465]
[1737978559544,0.0599278,99038.0,99032.0,0.151465]
[1737978559791,0.0200793,99033.0,99011.0,0.09944428]
[1737978559965,0.0200793,99033.0,99032.0,0.151466]
[1737978560628,0.0200793,99033.0,99032.0,0.001]
[1737978560754,0.1715443,99033.0,99032.0,0.001]
[1737978560937,0.0200793,99033.0,99022.0,0.023]
[1737978561137,0.0200793,99033.0,99011.0,0.09944428]
[1737978561138,0.151475,99026.0,99020.0,0.151483]
[1737978561343,0.0202209,99033.0,99012.0,0.023]
[1737978561558,0.0202209,99033.0,99011.0,0.09944428]
[1737978561559,0.0202209,99033.0,99031.0,0.001]
[1737978561773,0.0001416,99033.0,99032.0,0.151466]
[1737978561967,0.0001416,99033.0,99032.0,0.174466]
[1737978562377,0.0001416,99033.0,99032.0,0.17547564]
[1737978563039,0.0001416,99033.0,99032.0,0.27282293]
[1737978563215,0.0001416,99033.0,99032.0,0.27181329]
[1737978564027,0.0001416,99033.0,99032.0,0.27581329]
[1737978564435,0.0001416,99033.0,99032.0,0.27181329]
[1737978565066,0.0001416,99033.0,99032.0,0.27281329]
[1737978565282,0.0001416,99033.0,99032.0,0.28293109]
[1737978565933,0.0001416,99033.0,99032.0,0.28693109]
[1737978566895,0.0001416,99033.0,99032.0,0.179466]
[1737978568070,0.0001416,99033.0,99032.0,0.178466]
[1737978568271,0.0001416,99033.0,99032.0,0.028]
[1737978568450,0.0001416,99033.0,99032.0,0.179466]
[1737978568746,0.0001416,99033.0,99032.0,0.027]
[1737978568948,0.0001416,99033.0,99032.0,0.178466]
[1737978569163,0.0001416,99033.0,99032.0,0.175466]
[1737978569571,0.0001416,99033.0,99032.0,0.179466]
[1737978569768,0.0001416,99033.0,99032.0,0.175466]
[1737978569975,0.0001416,99033.0,99032.0,0.176466]
[1737978570551,0.0001416,99033.0,99032.0,0.174466]
[1737978570934,0.0001416,99033.0,99032.0,0.178466]
[1737978571347,0.1994056,99033.0,99032.0,0.004]
[1737978571552,0.0479416,99033.0,99032.0,0.004]
[1737978572179,0.0479416,99033.0,99032.0,0.151466]
[1737978572609,0.0479416,99033.0,99032.0,0.153466]
[1737978572817,0.0479416,99033.0,99032.0,0.151466]
[1737978573008,0.0001416,99033.0,99032.0,0.174466]
[1737978573207,0.0001416,99033.0,99032.0,0.27382295]
[1737978573382,0.0001416,99033.0,99032.0,0.27181329]
[1737978573608,0.0001416,99033.0,99032.0,0.42181329]
[1737978573808,0.0001416,99033.0,99032.0,0.45511188]
[1737978574735,0.0001416,99033.0,99032.0,0.45311188]
[1737978575126,0.0001416,99033.0,99032.0,0.45711188]
[1737978575723,0.0001416,99033.0,99032.0,0.45311188]
[1737978576119,0.0001416,99033.0,99032.0,0.45711188]
[1737978576327,0.0001416,99033.0,99032.0,0.45311188]
[1737978576729,0.0001416,99033.0,99032.0,0.46211188]
[1737978576909,0.0001416,99033.0,99032.0,0.45711188]
[1737978577345,0.0001416,99033.0,99032.0,0.46611188]
[1737978577516,0.0001416,99033.0,99032.0,0.46211188]
[1737978577711,0.0001416,99033.0,99032.0,0.31611188]
[1737978577936,0.0001416,99033.0,99032.0,0.28481329]
[1737978578319,0.0001416,99033.0,99032.0,0.28081329]
[1737978578594,0.0001416,99033.0,99032.0,0.160466]
[1737978579060,0.0001416,99033.0,99032.0,0.151466]
[1737978579243,0.0001416,99033.0,99032.0,0.177466]
[1737978579398,0.0001416,99033.0,99032.0,0.186466]
[1737978579606,0.0001416,99033.0,99032.0,0.177466]
[1737978580001,0.0001416,99033.0,99032.0,0.28281329]
[1737978580214,0.0001416,99033.0,99032.0,0.27481329]
[1737978580434,0.0001416,99033.0,99032.0,0.27181329]
[1737978580612,0.0001416,99033.0,99032.0,0.27781329]
[1737978580934,0.0001416,99033.0,99032.0,0.27481329]
[1737978581160,0.0001416,99033.0,99032.0,0.30607085]
[1737978581317,0.0001416,99033.0,99032.0,0.27181329]
[1737978581691,0.0001416,99033.0,99032.0,0.27481329]
[1737978581905,0.0001416,99033.0,99032.0,0.30608097]
[1737978582122,0.0001416,99033.0,99032.0,0.30308097]
[1737978582370,0.0001416,99033.0,99032.0,0.28893109]
[1737978582577,0.0001416,99033.0,99032.0,0.46620152]
[1737978582955,0.0001416,99033.0,99032.0,0.47520152]
[1737978583159,0.0001416,99033.0,99032.0,0.46620152]
[1737978583563,0.0001416,99033.0,99032.0,0.47420152]
[1737978583827,0.0001416,99033.0,99032.0,0.46320152]
[1737978584035,0.0001416,99033.0,99032.0,0.43193109]
[1737978584255,0.0001416,99033.0,99032.0,0.44293109]
[1737978584835,0.0001416,99033.0,99032.0,0.47120979]
[1737978584989,0.0001416,99033.0,99032.0,0.46438935]
[1737978585232,0.0001416,99033.0,99032.0,0.43311065]
[1737978585602,0.0001416,99033.0,99032.0,0.42511065]
[1737978586145,0.0001416,99033.0,99032.0,0.27511065]
[1737978586357,0.0001416,99033.0,99032.0,0.28311065]
[1737978586944,0.07796898,99042.0,99033.0,0.023]
[1737978587147,0.07796898,99042.0,99041.0,0.174452]
[1737978588734,0.07796898,99042.0,99041.0,0.175452]
[1737978590493,0.07796898,99042.0,99041.0,0.001]
[1737978590494,0.27721898,99042.0,99041.0,0.001]
[1737978591231,0.27721898,99042.0,99041.0,0.004]
[1737978591338,0.27721898,99042.0,99032.0,0.00029736]
[1737978591339,0.12576898,99042.0,99032.0,0.00029736]
[1737978591545,0.151463,99034.0,99032.0,0.00029736]
[1737978591788,0.12576898,99042.0,99032.0,0.00029736]
[1737978591789,0.151464,99033.0,99032.0,0.00029736]
[1737978592015,0.231564,99033.0,99032.0,0.00029736]
[1737978592219,0.0801,99033.0,99032.0,0.15176336]
[1737978593531,0.0801,99033.0,99032.0,0.17476336]
[1737978593764,0.0751,99039.0,99037.0,0.151457]
[1737978594171,0.0751,99039.0,99038.0,0.151457]
[1737978595238,0.09559591,99039.0,99038.0,0.151457]
[1737978595605,0.09559591,99039.0,99038.0,0.152457]
[1737978595889,0.09559591,99039.0,99038.0,0.151457]
[1737978596304,0.09559591,99039.0,99036.0,0.151459]
[1737978596684,0.09559591,99039.0,99033.0,0.224952]
[1737978596880,0.09559591,99039.0,99037.0,0.151457]
[1737978597310,0.09559591,99039.0,99038.0,0.152457]
[1737978597471,0.09559591,99039.0,99038.0,0.151457]
[1737978597869,0.09559591,99039.0,99038.0,0.152457]
[1737978598343,0.09559591,99039.0,99038.0,0.001]
[1737978598739,0.24705091,99039.0,99038.0,0.001]
[1737978598944,0.09559591,99039.0,99038.0,0.001]
[1737978600214,0.09559591,99039.0,99038.0,0.152457]
[1737978600439,0.0479416,99042.0,99038.0,0.152457]
[1737978600653,0.0479416,99042.0,99041.0,0.151452]
[1737978600826,0.02010786,99041.0,99040.0,0.151453]
[1737978601046,0.0479416,99042.0,99040.0,0.151453]
[1737978601259,0.0479416,99042.0,99037.0,0.151457]
[1737978601390,0.0479416,99042.0,99032.0,0.20225136]
[1737978601391,0.0479416,99042.0,99039.0,0.151454]
[1737978601590,0.0479416,99042.0,99040.0,0.151453]
[1737978601791,0.0479416,99042.0,99041.0,0.002]
[1737978602018,0.0479416,99042.0,99041.0,0.151452]
[1737978602215,0.06808804,99042.0,99041.0,0.151452]
[1737978602420,0.06808804,99042.0,99038.0,0.201942]
[1737978602643,0.06808804,99042.0,99039.0,0.001]
[1737978603198,0.06808804,99042.0,99034.0,0.20195]
[1737978603398,0.00076991,99041.0,99032.0,0.00029736]
[1737978603529,0.151457,99038.0,99032.0,0.15176236]
[1737978603922,0.20194,99039.0,99032.0,0.15176236]
[1737978604140,0.201942,99038.0,99032.0,0.00029736]
[1737978604376,0.151457,99038.0,99032.0,0.00029736]
[1737978604574,0.077,99040.0,99032.0,0.00029736]
[1737978604867,0.151456,99039.0,99033.0,0.151463]
[1737978605068,0.077,99040.0,99038.0,0.151456]
[1737978605266,0.077,99040.0,99036.0,0.151459]
[1737978605476,0.228454,99040.0,99034.0,0.353412]
[1737978605725,0.151462,99035.0,99032.0,0.00029736]
[1737978606017,0.151464,99033.0,99032.0,0.00129736]
[1737978606223,0.15146,99036.0,99032.0,0.00129736]
[1737978606550,0.201942,99038.0,99032.0,0.00129736]
[1737978606701,0.151464,99033.0,99032.0,0.00129736]
[1737978606910,0.280864,99033.0,99032.0,0.00129736]
[1737978607668,0.280864,99033.0,99032.0,0.00029736]
[1737978608517,0.52821129,99033.0,99032.0,0.00029736]
[1737978608721,0.151473,99027.0,99026.0,0.00029736]
[1737978608924,0.151492,99015.0,98991.0,0.0001416]
[1737978609172,0.37423929,99015.0,98991.0,0.0001416]
[1737978609340,0.37423929,99015.0,98998.0,0.151517]
[1737978609569,0.37423929,99015.0,98997.0,0.202025]
[1737978609967,0.37423929,99015.0,98991.0,0.0001416]
[1737978610167,0.39405317,99015.0,99014.0,0.09048582]
[1737978610776,0.39405317,99015.0,99014.0,0.08948582]
[1737978611010,0.151502,99008.0,99007.0,0.08948582]
[1737978612173,0.151502,99008.0,99007.0,0.09048582]
[1737978613980,0.39405317,99015.0,99007.0,0.001]
[1737978613981,0.14521388,99015.0,99007.0,0.001]
[1737978614180,0.14521388,99015.0,99009.0,0.023]
[1737978614401,0.14521388,99015.0,99011.0,0.151497]
[1737978614665,0.14521388,99015.0,99012.0,0.151495]
[1737978614820,0.14521388,99015.0,99009.0,0.023]
[1737978615024,0.201991,99014.0,99000.0,0.0001416]
[1737978615228,0.14521388,99015.0,99000.0,0.0001416]
[1737978615429,0.151509,99004.0,99000.0,0.0001416]
[1737978615629,0.353514,99006.0,99000.0,0.0001416]
[1737978616107,0.151507,99005.0,99000.0,0.0001416]
[1737978616310,0.151509,99004.0,99000.0,0.0001416]
[1737978616509,0.14521388,99015.0,99000.0,0.0001416]
[1737978616695,0.151511,99003.0,99000.0,0.0001416]
[1737978617548,0.151513,99001.0,99000.0,0.0021416]
[1737978617724,0.277813,99001.0,99000.0,0.0021416]
[1737978617925,0.277813,99001.0,99000.0,0.0001416]
[1737978618164,0.277813,99001.0,99000.0,0.0011416]
[1737978618503,0.277813,99001.0,99000.0,0.0001416]
[1737978618706,0.277813,99001.0,99000.0,0.0011416]
[1737978619598,0.28792034,99001.0,99000.0,0.0011416]
[1737978623873,0.0467,99001.0,99000.0,0.1526566]
[1737978624937,0.231,99010.0,99000.0,0.0011416]
[1737978625140,0.1616171,99005.0,99000.0,0.0001416]
[1737978625349,0.202001,99009.0,99000.0,0.0001416]
[1737978625350,0.15151,99004.0,99000.0,0.0001416]
[1737978625489,0.15151,99004.0,99000.0,0.0051416]
[1737978625699,0.15151,99004.0,99000.0,0.0011416]
[1737978625922,0.15151,99004.0,99000.0,0.0021416]
[1737978626134,0.151513,99001.0,99000.0,0.0021416]
[1737978626329,0.151513,99001.0,99000.0,0.0011416]
[1737978626889,0.151513,99001.0,99000.0,0.0001416]
[1737978627241,0.231313,99001.0,99000.0,0.0001416]
[1737978627439,0.277213,99001.0,99000.0,0.0001416]
[1737978627855,0.37456029,99001.0,99000.0,0.0011416]
[1737978628062,0.37456029,99001.0,99000.0,0.0001416]
[1737978628462,0.37456029,99001.0,99000.0,0.0011416]
[1737978629259,0.37456029,99001.0,99000.0,0.0001416]
[1737978629755,0.37556029,99001.0,99000.0,0.0001416]
[1737978631019,0.52556029,99001.0,99000.0,0.0001416]
[1737978631832,0.151538,98985.0,98984.0,0.0001416]
[1737978632047,0.281338,98985.0,98984.0,0.0001416]
[1737978633005,0.151555,98974.0,98963.0,0.202093]
[1737978633215,0.151555,98974.0,98949.0,0.202123]
[1737978633216,0.11754226,98980.0,98962.0,0.151572]
[1737978633462,0.01986999,98967.0,98940.0,0.31968326]
[1737978633615,0.01986999,98967.0,98966.0,0.151567]
[1737978635066,0.01986999,98967.0,98966.0,0.153567]
[1737978637569,0.01986999,98967.0,98966.0,0.154567]
[1737978642660,0.01986999,98967.0,98966.0,0.154567]
[1737978642865,0.01986999,98967.0,98966.0,0.003]